fUSD/lending_fUSD_20251103
["ID","MTS","AMOUNT","RATE_DAILY","PERIOD"]
[392958981,1762179046087,-9212.04452397,0.000285,2]
[392958982,1762179046098,-46119.04040345,0.000285,2]
[392958983,1762179046109,-10385.36813344,0.000285,2]
[392958984,1762179046119,-522.07,0.000285,7]
[392958985,1762179046128,-151.0,0.000285,31]
[392958986,1762179046137,-151.0,0.000285,31]
[392958987,1762179046146,-151.0,0.000285,31]
[392958988,1762179046155,-151.0,0.000285,31]
[392958989,1762179046165,-153.88395,0.000285,31]
[392958991,1762179046174,-151.0,0.000285,31]
[392958993,1762179046183,-151.0,0.000285,15]
[392958994,1762179046191,-151.0,0.000285,30]
[392958995,1762179046201,-169.836304,0.000285,30]
[392958996,1762179046210,-600.0,0.0002855,7]
[392958997,1762179046219,-24891.59269072,0.000286,30]
[392958998,1762179046229,-500.0,0.00028603,7]
[392958999,1762179046240,-600.0,0.00028613,7]
[392959000,1762179046250,-417.49284314,0.00028654,7]
[392959001,1762179046259,-600.0,0.00028659,7]
[392959002,1762179046269,-500.0,0.00028728,7]
[392959003,1762179046278,-500.0,0.00028736,7]
[392959004,1762179046287,-153.06403607,0.00028755,7]
[392959005,1762179046297,-939.8047144,0.00028755,7]
[392959006,1762179046306,-255.88,0.00028767,11]
[392959007,1762179046315,-1000.0,0.00028767,2]
[392959008,1762179046324,-151.0,0.00028767,30]
[392959009,1762179046333,-600.0,0.00028786,7]
[392959010,1762179046341,-47842.47605309,0.0002882,2]
[392959011,1762179046351,-200.0,0.0002882,30]
[392959012,1762179046360,-152.0,0.00028872,3]
[392959013,1762179046369,-500.0,0.00028877,7]
[392959014,1762179046379,-500.0,0.0002889,7]
[392959015,1762179046387,-3026.69204725,0.000289,7]
[392959016,1762179046403,-2536.11099079,0.000289,7]
[392959017,1762179046413,-541.4932003,0.000289,7]
[392959018,1762179046458,8269.42370204,0.00013561,2]
[392959019,1762179046481,10000.01,0.00013561,2]
[392959020,1762179046507,10000.01,0.00013561,2]
[392959021,1762179046529,10000.01,0.00013561,2]
[392959022,1762179046550,10000.01,0.00013561,2]
[392959023,1762179046570,10000.01,0.00013561,2]
[392959024,1762179046591,10000.01,0.00013561,2]
[392959025,1762179046612,10000.01,0.00013561,2]
[392959026,1762179046633,10000.01,0.00013561,2]
[392959027,1762179046654,10000.01,0.00013561,2]
[392959028,1762179046779,-409.53684305,0.00013561,2]
[392959029,1762179046800,-17186.05112042,0.00013561,2]
[392959030,1762179046811,-410.99176658,0.00013561,2]
[392959031,1762179046936,-13915.72203593,0.00013561,2]
[392959032,1762179046947,-953.15308852,0.00013561,2]
[392959033,1762179047118,-1364.75629796,0.00013561,2]
[392959034,1762179048490,-257.02561517,0.00013561,2]
[392959035,1762179051175,-358.52523476,0.00013561,2]
[392959036,1762179053831,-164.56674478,0.00013561,2]
[392959037,1762179057815,-214.6380603,0.00013561,2]
[392959038,1762179071355,-696.76949049,0.00013561,2]
[392959039,1762179128423,6888.0,0.00036805,30]
[392959040,1762179153319,-509.827771,0.00013933,2]
[392959041,1762179157640,-288.72888392,0.00014003,2]
[392959042,1762179159769,-314.60852207,0.00014003,2]
[392959043,1762179199168,1000.0,0.00036808,30]
[392959044,1762179212879,1000.0,0.00036808,30]
[392959045,1762179226341,1000.0,0.00036808,30]
[392959046,1762179279157,497.37,0.00013699,2]
[392959047,1762179314468,1000.0,0.00036808,30]
[392959048,1762179315459,-285.52,0.00014,2]
[392959049,1762179315484,-25.42964294,0.00014,2]
[392959050,1762179317023,-260.09035706,0.00014,2]
[392959051,1762179317045,-239.90964294,0.00014,2]
[392959052,1762179318326,1000.0,0.00036808,30]
[392959053,1762179365349,1000.0,0.00036808,30]
[392959054,1762179375528,1000.0,0.00036808,30]
[392959055,1762179375557,-45.61035706,0.00014,2]
[392959056,1762179375581,-285.52,0.00014,2]
[392959057,1762179375604,-247.83109783,0.00014002,2]
[392959058,1762179377091,-2.16890217,0.00014002,2]
[392959059,1762179377115,-192.83109783,0.00014002,2]
[392959060,1762179378263,1000.0,0.00036808,30]
[392959061,1762179379713,1000.0,0.00036808,30]
[392959062,1762179380264,-2.16890217,0.00014002,2]
[392959063,1762179380286,-140.25129401,0.00014003,2]
[392959064,1762179380307,-250.0,0.00014051,2]
[392959065,1762179380328,-70.72546499,0.00014051,2]
[392959066,1762179380845,1000.0,0.00036808,30]
[392959067,1762179381984,1000.0,0.00036808,30]
[392959068,1762179383285,1000.0,0.00036808,30]
[392959069,1762179384510,1000.0,0.00036808,30]
[392959070,1762179386454,1000.0,0.00036808,30]
[392959071,1762179387812,1000.0,0.00036808,30]
[392959072,1762179389693,1000.0,0.00036808,30]
[392959073,1762179390636,1000.0,0.00036808,30]
[392959074,1762179391523,1000.0,0.00036808,30]
[392959076,1762179397646,5000.0,0.00036808,30]
[392959077,1762179400774,5000.0,0.00036808,30]
[392959078,1762179435506,-124.27453501,0.00014051,2]
[392959079,1762179435529,-96.7640101,0.00014053,2]
[392959080,1762179436419,1677.75555911,0.00036808,30]
[392959081,1762179437712,-98.2359899,0.00014053,2]
[392959082,1762179437736,-201.7640101,0.00014056,2]
[392959083,1762179449490,-48.2359899,0.00014056,2]
[392959084,1762179449511,-167.57980382,0.00014061,2]
[392959087,1762179453729,2108.91,0.00036808,30]
[392959088,1762179465463,-215.12877233,0.00014061,2]
[392959089,1762179466085,-1040.78692689,0.00014061,2]
[392959090,1762179466113,-195.0,0.00014062,2]
[392959091,1762179466142,-300.0,0.00014072,2]
[392959092,1762179466172,-1653.2356785,0.00014073,2]
[392959093,1762179466201,-1192.53549153,0.00014073,2]
[392959094,1762179466230,-152.41568192,0.00014073,2]
[392959095,1762179466259,-150.0,0.00014116,2]
[392959096,1762179466437,-137.06244232,0.00014116,2]
[392959097,1762179466473,-1062.93755768,0.00014116,2]
[392959098,1762179466503,-300.0,0.00014116,2]
[392959099,1762179466531,-335.30983693,0.00014117,2]
[392959100,1762179466565,-272.74431871,0.00014117,2]
[392959101,1762179466598,-500.0,0.00014117,2]
[392959102,1762179466631,-500.0,0.00014117,2]
[392959103,1762179466662,-500.0,0.00014117,2]
[392959104,1762179466692,-500.0,0.00014117,2]
[392959105,1762179466724,-500.0,0.00014117,2]
[392959106,1762179466754,-500.0,0.00014117,2]
[392959107,1762179466793,-500.0,0.00014117,2]
[392959108,1762179466824,-500.0,0.00014117,2]
[392959109,1762179466854,-638.06276989,0.00014117,2]
[392959110,1762179466888,-500.0,0.00014117,2]
[392959111,1762179466919,-500.0,0.00014117,2]
[392959112,1762179466952,-500.0,0.00014117,2]
[392959113,1762179466984,-500.0,0.00014117,2]
[392959114,1762179467016,-500.0,0.00014117,2]
[392959115,1762179467049,-500.0,0.00014117,2]
[392959116,1762179467083,-223.88446022,0.00014117,2]
[392959117,1762179467184,-276.11553978,0.00014117,2]
[392959118,1762179467386,-500.0,0.00014117,2]
[392959119,1762179467419,-500.0,0.00014117,2]
[392959120,1762179467451,-500.0,0.00014117,2]
[392959121,1762179467483,-500.0,0.00014117,2]
[392959122,1762179467514,-500.0,0.00014117,2]
[392959123,1762179467548,-500.0,0.00014117,2]
[392959124,1762179467579,-500.0,0.00014117,2]
[392959125,1762179467612,-500.0,0.00014117,2]
[392959126,1762179467646,-500.0,0.00014117,2]
[392959127,1762179467750,-500.0,0.00014117,2]
[392959128,1762179467781,-500.0,0.00014117,2]
[392959129,1762179467814,-500.0,0.00014117,2]
[392959130,1762179467859,-500.0,0.00014117,2]
[392959131,1762179467889,-500.0,0.00014117,2]
[392959132,1762179467919,-500.0,0.00014117,2]
[392959133,1762179467950,-424.64900011,0.00014117,2]
[392959134,1762179467981,-500.0,0.00014117,2]
[392959135,1762179469369,-188.94119927,0.00014118,2]
[392959136,1762179470977,-181.70154507,0.00014118,2]
[392959137,1762179473735,-420.0,0.00014118,2]
[392959138,1762179476717,-201.58481839,0.00014118,2]
[392959139,1762179478254,-166.66,0.00014118,2]
[392959140,1762179480312,-187.2538,0.00014118,2]
[392959141,1762179482357,-165.60681668,0.00014118,2]
[392959142,1762179483259,150.0,0.00014117,2]
[392959143,1762179485349,-446.278763,0.00014118,2]
[392959144,1762179489102,-541.97305759,0.00014118,2]
[392959145,1762179489124,-46.59601873,0.00014118,2]
[392959146,1762179492494,-250.0,0.00014118,2]
[392959147,1762179494483,-360.93430331,0.00014118,2]
[392959148,1762179497000,-198.6163425,0.00014118,2]
[392959149,1762179499034,-143.85333546,0.00014118,2]
[392959150,1762179499060,-208.32539986,0.00014118,2]
[392959151,1762179519380,1637.708456,0.00014047,2]
[392959152,1762179524013,156.63746021,0.00014025,2]
[392959153,1762179601371,206.36608357,0.00014117,2]
[392959154,1762179601398,93.63391643,0.00014117,2]
[392959155,1762179601958,1200.0,0.00014117,2]
[392959156,1762179607502,8706.37608357,0.00014108,2]
[392959157,1762179607531,5922.05391643,0.00014108,2]
[392959158,1762179649812,1103.0,0.00027397,120]
[392959159,1762179653811,500.0,0.00036865,120]
[392959160,1762179654112,500.0,0.00036865,120]
[392959161,1762179654359,500.0,0.00036865,120]
[392959162,1762179654602,500.0,0.00036865,120]
[392959164,1762179662134,300.0,0.00014117,2]
[392959165,1762179662689,150.0,0.00014117,2]
[392959166,1762179671044,2475.53250177,0.00014021,2]
[392959167,1762179720548,-239.84119403,0.00014118,2]
[392959168,1762179721988,500.0,0.00014117,2]
[392959169,1762179724388,-207.43160238,0.00014118,2]
[392959170,1762179740470,500.0,0.00014117,2]
[392959171,1762179751046,-196.64267996,0.00014118,2]
[392959172,1762179752580,-227.12104671,0.00014118,2]
[392959173,1762179779720,152.4235818,0.00014047,2]
[392959174,1762179779745,294.8492142,0.00014047,2]
[392959175,1762179781492,300.0,0.00014117,2]
[392959176,1762179794591,423.7638,0.00013961,2]
[392959177,1762179800743,413.8384,0.00014018,2]
[392959178,1762179802438,4112.70739969,0.0001402,2]
[392959179,1762179809626,156.63746017,0.0001402,2]
[392959180,1762179842330,300.0,0.00014117,2]
[392959181,1762179842465,150.0,0.00014117,2]
[392959182,1762179902199,300.0,0.00014117,2]
[392959183,1762179902235,1200.0,0.00014117,2]
[392959185,1762179919425,2348.21372594,9e-05,2]
[392959186,1762179919447,192.49577638,9e-05,2]
[392959187,1762179922098,2527.49306128,0.00014,2]
[392959188,1762179925075,1018.75004128,0.000108,2]
[392959189,1762179936288,1184.38081676,9e-05,2]
[392959192,1762179954349,5076.8903043,0.0001399,2]
[392959193,1762179954373,10000.01,0.0001399,2]
[392959194,1762179954396,10000.01,0.0001399,2]
[392959195,1762179954419,10000.01,0.0001399,2]
[392959196,1762179954442,6101.16025844,0.0001399,2]
[392959198,1762179993793,234.71688585,0.00014117,2]
[392959199,1762179993843,190.9210231,0.00014117,2]
[392959200,1762179995097,500.0,0.00014117,2]
[392959201,1762179995176,500.0,0.00014117,2]
[392959202,1762179995306,563.80627699,0.00014117,2]
[392959203,1762180022484,150.0,0.00014117,2]
[392959204,1762180057285,1759.40555562,0.00014018,2]
[392959205,1762180057309,5378.20997021,0.00014018,2]
[392959206,1762180064316,166.66,0.00013896,2]
[392959215,1762180085007,156.63746017,0.00014018,2]
[392959219,1762180089950,186.59130588,0.000135,2]
[392959220,1762180095542,-319.23181656,0.00014118,2]
[392959221,1762180097285,1914.73213934,0.0001,2]
[392959222,1762180099346,388.14718442,7.888e-05,2]
[392959223,1762180102248,5022.65052163,0.00036906,80]
[392959228,1762180108665,1809.03193998,0.0001,2]
[392959229,1762180108687,902.12918356,0.0001,2]
[392959233,1762180118458,8285.42117302,0.0001,2]
[392959234,1762180121479,812.45964342,0.00013699,2]
[392959235,1762180121503,529.007079,0.00013699,2]
[392959236,1762180138547,631.74,0.00013699,2]
[392959237,1762180142920,271.5499138,0.00014117,2]
[392959265,1762180177209,1000.0,0.00013699,2]
[392959269,1762180201639,1200.0,0.00014117,2]
[392959270,1762180201674,300.0,0.00014117,2]
[392959271,1762180202292,300.0,0.00014117,2]
[392959272,1762180202515,150.0,0.00014117,2]
[392959273,1762180206018,5617.7130072,0.00014108,2]
[392959274,1762180206041,1696.5069928,0.00014108,2]
[392959275,1762180217455,404.91698157,0.000141,2]
[392959284,1762180231854,-508.67861572,0.00014118,2]
[392959285,1762180231868,-2926.6787721,0.00014118,2]
[392959286,1762180231879,-345.51780687,0.00014118,2]
[392959287,1762180231890,-5623.71398958,0.00014118,2]
[392959288,1762180231901,-125812.63508849,0.00014118,2]
[392959289,1762180231912,-20410.69972261,0.00014118,2]
[392959290,1762180231972,-654.67137427,0.00014118,2]
[392959291,1762180231984,-997.19177538,0.00014118,2]
[392959292,1762180232062,-1531.52132912,0.00014118,2]
[392959332,1762180237695,-407.2729115,0.00014118,2]
[392959333,1762180237920,-259382.82487486,0.00014118,2]
[392959334,1762180237929,-300.0,0.00014118,2]
[392959335,1762180237939,-300.0,0.00014118,2]
[392959337,1762180237949,-218.85034178,0.00014118,2]
[392959338,1762180237958,-2500.0,0.00014118,2]
[392959341,1762180237968,-2500.0,0.00014119,2]
[392959342,1762180237978,-414.41014256,0.00014119,2]
[392959344,1762180237988,-4372.24,0.00014127,2]
[392959346,1762180237998,-373.04321473,0.00014133,2]
[392959348,1762180238008,-300.0,0.00014133,2]
[392959350,1762180238017,-236.37597321,0.00014133,2]
[392959352,1762180238026,-166.66,0.00014189,2]
[392959353,1762180238036,-1600.0,0.00014199,2]
[392959354,1762180238046,-203.69,0.00014265,2]
[392959355,1762180238055,-202.2,0.00014298,2]
[392959356,1762180238065,-166.66,0.00014482,2]
[392959357,1762180238075,-3357.47,0.00014719,2]
[392959358,1762180238085,-166.66,0.00014774,2]
[392959359,1762180238094,-550.41,0.00014883,2]
[392959360,1762180238105,-446.19798871,0.000149,2]
[392959361,1762180238114,-737.44283374,0.000149,2]
[392959362,1762180238125,-372.31603788,0.000149,2]
[392959363,1762180238135,-189.42492088,0.000149,2]
[392959364,1762180238144,-500.0,0.00014973,2]
[392959365,1762180238154,-500.0,0.00014973,2]
[392959366,1762180238164,-500.0,0.00014973,2]
[392959367,1762180238173,-500.0,0.00014973,2]
[392959368,1762180238183,-516.43133353,0.00014973,2]
[392959369,1762180238193,-500.0,0.00014973,2]
[392959370,1762180238203,-57044.74729848,0.0001498,2]
[392959371,1762180238212,-500.0,0.00014986,2]
[392959372,1762180238222,-648.69000098,0.00014986,2]
[392959373,1762180238232,-252.46,0.00014986,2]
[392959374,1762180238240,-1058.24935506,0.0001499,2]
[392959375,1762180238249,-1058.24935506,0.0001499,2]
[392959376,1762180238258,-1058.24935506,0.0001499,2]
[392959377,1762180238267,-1000.0,0.00014999,2]
[392959378,1762180238278,-1000.0,0.00014999,2]
[392959379,1762180238288,-1024.76,0.00014999,2]
[392959380,1762180238298,-666.0,0.00014999,2]
[392959381,1762180238307,-3032242.61721119,0.00015,2]
[392959382,1762180238317,-6021718.98762272,0.00015,2]
[392959383,1762180238327,-700.1531496,0.00015,2]
[392959384,1762180238337,-3466.01531735,0.00015,2]
[392959385,1762180238347,-166.66,0.00015067,2]
[392959386,1762180238357,-202.2,0.00015092,2]
[392959387,1762180238366,-255.0,0.00015232,2]
[392959388,1762180238376,-308.15,0.00015254,2]
[392959389,1762180238385,-10121.28,0.00015257,2]
[392959390,1762180238396,-1968.05,0.00015257,2]
[392959391,1762180238406,-1670.88,0.00015257,2]
[392959392,1762180238415,-252.46,0.0001526,2]
[392959393,1762180238426,-166.66,0.00015359,2]
[392959394,1762180238435,-308.15,0.00015391,2]
[392959395,1762180238445,-477.5520043,0.00015404,2]
[392959396,1762180238455,-420.0,0.00015464,2]
[392959397,1762180238465,-893.54426855,0.00015521,2]
[392959398,1762180238475,-1000.0,0.00015521,2]
[392959399,1762180238485,-504.98640872,0.00015521,2]
[392959400,1762180238494,-1680.0,0.00015529,2]
[392959401,1762180238504,-2500.0,0.0001553,2]
[392959402,1762180238513,-250.0,0.0001553,2]
[392959403,1762180238523,-250.0,0.0001553,2]
[392959404,1762180238533,-195.0,0.0001553,2]
[392959405,1762180238542,-300.0,0.0001553,2]
[392959406,1762180238552,-231.17860089,0.0001553,2]
[392959407,1762180238562,-250.0,0.0001553,2]
[392959408,1762180238571,-193.0,0.0001553,2]
[392959409,1762180238582,-2510.55357343,0.0001553,11]
[392959410,1762180238591,-300.0,0.0001553,2]
[392959411,1762180238600,-283.5154461,0.0001553,2]
[392959412,1762180238610,-300.0,0.0001553,2]
[392959413,1762180238620,-252.46,0.00015534,2]
[392959414,1762180238630,-7137.61552583,0.00015669,2]
[392959415,1762180238640,-163.23764023,0.00015802,2]
[392959416,1762180238650,-252.46,0.00015808,2]
[392959417,1762180238659,-202.2,0.00015887,2]
[392959418,1762180238669,-1600.0,0.00015974,2]
[392959419,1762180238679,-1500.0,0.00016068,2]
[392959420,1762180238688,-252.46476803,0.00016082,2]
[392959421,1762180238698,-300.0,0.00016141,2]
[392959422,1762180238707,-47157.96167928,0.000162,5]
[392959423,1762180238717,-433.0,0.00016432,2]
[392959424,1762180238727,-552.22068835,0.00016438,2]
[392959425,1762180238738,-500.0,0.00016438,2]
[392959426,1762180238748,-1129.63713841,0.00016616,2]
[392959427,1762180238758,-150.0,0.0001663,2]
[392959428,1762180238767,-150.0,0.0001663,2]
[392959429,1762180238777,-263.17194606,0.0001663,2]
[392959430,1762180238788,-500.0,0.00016632,2]
[392959431,1762180238799,-202.2,0.00016681,2]
[392959432,1762180238809,-150.0,0.00016767,2]
[392959433,1762180238819,-198.62,0.00016777,2]
[392959434,1762180238831,-225.91405869,0.00016894,2]
[392959435,1762180238841,-225.91405869,0.00016894,2]
[392959436,1762180238850,-266.09991313,0.00016904,2]
[392959437,1762180238860,-300.0,0.00016938,2]
[392959438,1762180238872,-13501.34234853,0.00016939,2]
[392959439,1762180238882,-236.58695769,0.00016939,2]
[392959440,1762180238892,-6548.47311668,0.00016939,2]
[392959441,1762180238901,-587.0,0.0001694,2]
[392959442,1762180238911,-248.71531821,0.00017005,2]
[392959443,1762180238920,-2351.0,0.00017082,2]
[392959444,1762180238930,-7137.61552583,0.00017321,2]
[392959445,1762180238939,-300.0,0.0001735,2]
[392959446,1762180238949,-12071.64,0.00017351,2]
[392959447,1762180238959,-269.08884397,0.00017362,2]
[392959448,1762180238970,-202.2,0.00017475,2]
[392959449,1762180238981,-573.0,0.00017508,2]
[392959450,1762180238991,-559.0,0.00017508,2]
[392959451,1762180239001,-300.0,0.00017511,2]
[392959452,1762180239011,-837.91944318,0.00017534,2]
[392959453,1762180239021,-446.1979887,0.00017573,2]
[392959454,1762180239031,-819.0,0.00017594,2]
[392959455,1762180239041,-4484.056,0.00017594,2]
[392959456,1762180239051,-607.0,0.00017594,2]
[392959457,1762180239061,-821.0,0.00017594,2]
[392959458,1762180239071,-2140.0,0.00017594,2]
[392959459,1762180239086,-1000.0,0.00017689,2]
[392959460,1762180239097,-1405.83,0.00017696,2]
[392959461,1762180239107,-10000.01,0.0001772,2]
[392959462,1762180239117,-736.0,0.00017731,2]
[392959463,1762180239127,-1600.0,0.00017749,2]
[392959464,1762180239138,-150.0,0.00017835,2]
[392959465,1762180239148,-150.0,0.00017835,2]
[392959466,1762180239158,-150.0,0.00017835,2]
[392959467,1762180239167,-150.0,0.00017835,2]
[392959468,1762180239177,-150.0,0.00017835,2]
[392959469,1762180239186,-200.4129963,0.00017835,2]
[392959470,1762180239196,-500.0,0.00017835,2]
[392959471,1762180239205,-150.0,0.00017835,2]
[392959472,1762180239215,-150.34146439,0.00017835,2]
[392959473,1762180239225,-150.0,0.00017835,2]
[392959474,1762180239234,-274.38776277,0.00017835,2]
[392959475,1762180239244,-150.0,0.00017835,2]
[392959476,1762180239254,-421.0,0.00017835,2]
[392959477,1762180239263,-150.0,0.00017835,2]
[392959478,1762180239273,-150.0,0.00017835,2]
[392959479,1762180239283,-500.0,0.00017835,2]
[392959480,1762180239293,-731.0,0.00017835,2]
[392959481,1762180239303,-150.0,0.00017835,2]
[392959482,1762180239312,-150.0,0.00017835,2]
[392959483,1762180239321,-150.0,0.00017835,2]
[392959484,1762180239333,-150.0,0.00017835,2]
[392959485,1762180239342,-500.0,0.00017835,2]
[392959486,1762180239351,-500.0,0.00017835,2]
[392959487,1762180239361,-300.0,0.00017845,2]
[392959488,1762180239370,-16036.53,0.00017846,2]
[392959489,1762180239379,-250.0,0.00017972,2]
[392959490,1762180239388,-204.65027273,0.00017972,2]
[392959491,1762180239398,-500.0,0.00017972,2]
[392959492,1762180239407,-150.0,0.00017972,2]
[392959493,1762180239416,-150.0,0.00017972,2]
[392959494,1762180239425,-421.0,0.00017972,2]
[392959495,1762180239435,-200.0,0.00017972,2]
[392959496,1762180239444,-500.0,0.00017972,2]
[392959497,1762180239453,-731.0,0.00017972,2]
[392959498,1762180239462,-500.0,0.00017972,2]
[392959499,1762180239471,-500.0,0.00017972,2]
[392959500,1762180239480,-500.0,0.00017973,2]
[392959501,1762180239489,-300.0,0.00017999,2]
[392959502,1762180239498,-883.62180574,0.00018,2]
[392959503,1762180239507,-82567.7968673,0.00018,2]
[392959505,1762180239517,-1762.30589658,0.000181,2]
[392959506,1762180239526,-500.0,0.00018109,2]
[392959507,1762180239535,-150.0,0.00018109,2]
[392959508,1762180239544,-421.0,0.00018109,2]
[392959509,1762180239554,-500.0,0.00018109,2]
[392959510,1762180239563,-731.0,0.00018109,2]
[392959511,1762180239572,-590.64735062,0.00018109,2]
[392959512,1762180239583,-500.0,0.00018109,2]
[392959513,1762180239776,-244.41,0.0001815,2]
[392959514,1762180239790,-300.0,0.00018197,2]
[392959515,1762180239800,-13544.7,0.00018198,2]
[392959516,1762180239810,-500.0,0.00018246,2]
[392959517,1762180239819,-421.0,0.00018246,2]
[392959518,1762180239832,-500.0,0.00018246,2]
[392959519,1762180239841,-731.0,0.00018246,2]
[392959520,1762180239851,-500.0,0.00018246,2]
[392959521,1762180239860,-202.2,0.0001827,2]
[392959522,1762180239871,-257.91778498,0.00018374,2]
[392959523,1762180239880,-500.0,0.00018383,2]
[392959524,1762180239890,-421.0,0.00018383,2]
[392959525,1762180239899,-500.0,0.00018383,2]
[392959526,1762180239908,-731.0,0.00018383,2]
[392959527,1762180239917,-213.502055,0.00018383,2]
[392959528,1762180239926,-285.52,0.000185,2]
[392959529,1762180239935,-201.71,0.00018515,2]
[392959530,1762180239945,-500.0,0.0001852,2]
[392959531,1762180239955,-421.0,0.0001852,2]
[392959532,1762180239965,-500.0,0.0001852,2]
[392959533,1762180239974,-731.0,0.0001852,2]
[392959534,1762180239983,-513.7537043,0.00018521,2]
[392959535,1762180239993,-300.0,0.00018531,2]
[392959536,1762180240002,-206.86,0.00018532,2]
[392959537,1762180240011,-11902.24,0.00018532,2]
[392959538,1762180240021,-823.0,0.00018556,2]
[392959539,1762180240030,-500.0,0.00018657,2]
[392959540,1762180240040,-421.0,0.00018657,2]
[392959541,1762180240049,-220.63293975,0.00018657,2]
[392959542,1762180240058,-731.0,0.00018657,2]
[392959543,1762180240067,-710.0,0.00018722,2]
[392959544,1762180240080,-2751.0,0.00018782,2]
[392959545,1762180240090,-3292.0,0.0001879,2]
[392959546,1762180240099,-154.31092621,0.00018794,2]
[392959547,1762180240108,-421.0,0.00018794,2]
[392959548,1762180240117,-731.0,0.00018794,2]
[392959549,1762180240127,-169.65,0.000188,2]
[392959550,1762180240136,-710.0,0.00018895,2]
[392959551,1762180240146,-421.0,0.00018931,2]
[392959552,1762180240155,-731.0,0.00018931,2]
[392959553,1762180240165,-7137.61552583,0.00018972,2]
[392959554,1762180240174,-800.17720091,0.00019,3]
[392959555,1762180240184,-1728.65575598,0.00019,2]
[392959556,1762180240193,-202.2,0.00019064,2]
[392959557,1762180240203,-421.0,0.00019068,2]
[392959558,1762180240212,-731.0,0.00019068,2]
[392959559,1762180240222,-710.0,0.00019073,2]
[392959560,1762180240231,-710.0,0.0001911,2]
[392959561,1762180240240,-467.0,0.00019129,2]
[392959562,1762180240250,-500.0,0.00019178,2]
[392959563,1762180240259,-500.0,0.00019178,2]
[392959564,1762180240269,-500.0,0.00019178,2]
[392959565,1762180240278,-500.0,0.00019178,2]
[392959566,1762180240287,-428.60152552,0.00019178,2]
[392959567,1762180240297,-524.5890351,0.000192,2]
[392959569,1762180240306,-500.0,0.000192,2]
[392959570,1762180240315,-421.0,0.00019205,2]
[392959571,1762180240324,-731.0,0.00019205,2]
[392959572,1762180240335,-150.0,0.00019205,2]
[392959573,1762180240344,-421.0,0.00019342,2]
[392959574,1762180240353,-731.0,0.00019342,2]
[392959575,1762180240362,-710.0,0.00019349,2]
[392959576,1762180240372,-710.0,0.00019434,2]
[392959577,1762180240381,-710.0,0.00019437,2]
[392959579,1762180240390,-500.0,0.0001944,2]
[392959581,1762180240399,-421.0,0.00019479,2]
[392959583,1762180240408,-731.0,0.00019479,2]
[392959584,1762180240418,-1600.0,0.00019524,2]
[392959586,1762180240427,-710.0,0.0001961,2]
[392959588,1762180240436,-421.0,0.00019616,2]
[392959589,1762180240446,-731.0,0.00019616,2]
[392959590,1762180240455,-710.0,0.00019687,2]
[392959591,1762180240463,-267.46074303,0.00019743,2]
[392959592,1762180240472,-1000.0,0.00019748,2]
[392959593,1762180240481,-421.0,0.00019753,2]
[392959594,1762180240491,-731.0,0.00019753,2]
[392959595,1762180240499,-710.0,0.00019759,2]
[392959596,1762180240509,-710.0,0.00019762,2]
[392959597,1762180240518,-500.0,0.00019775,2]
[392959598,1762180240527,-202.2,0.00019858,2]
[392959599,1762180240536,-710.0,0.00019873,2]
[392959600,1762180240545,-710.0,0.00019887,2]